[Event "Championnat du monde jeunes U10"]
[Date "2024.11.17"]
[White "Deepak Ambattu, Rithvik"]
[Black "Blekh, Erik"]
[WhiteElo "2063"]
[BlackElo "1790"]
[Round "3.18"]
[Result "1-0"]
[TimeControl "5400+30"]

1. e4 {[%clk 1:30:56]} 1... c5 {[%clk 1:30:46]} 2. Nf3 {[%clk 1:31:19]} 2... d6
{[%clk 1:30:45]} 3. d4 {[%clk 1:31:42]} 3... cxd4 {[%clk 1:30:45]} 4. Nxd4
{[%clk 1:32:04]} 4... Nf6 {[%clk 1:30:24]} 5. Nc3 {[%clk 1:32:27]} 5... g6
{[%clk 1:29:59]} 6. Be3 {[%clk 1:32:25]} 6... Bg7 {[%clk 1:29:38]} 7. f3 {[%clk
1:32:43]} 7... Nc6 {[%clk 1:29:22]} 8. Qd2 {[%clk 1:33:01]} 8... O-O {[%clk
1:29:01]} 9. O-O-O {[%clk 1:33:02]} 9... d5 {[%clk 1:28:31]} 10. exd5 {[%clk
1:33:25]} 10... Nxd5 {[%clk 1:28:52]} 11. Nxc6 {[%clk 1:33:50]} 11... bxc6
{[%clk 1:29:05]} 12. Bd4 {[%clk 1:34:16]} 12... Bxd4 {[%clk 1:28:16]} 13. Qxd4
{[%clk 1:34:03]} 13... Qb6 {[%clk 1:27:57]} 14. Na4 {[%clk 1:33:59]} 14... Qc7
{[%clk 1:27:52]} 15. Bc4 {[%clk 1:30:22]} 15... Rd8 {[%clk 1:27:35]} 16. Nc5
{[%clk 1:28:06]} 16... Bf5 {[%clk 1:26:23]} 17. Bb3 {[%clk 1:23:03]} 17... a5
{[%clk 1:15:58]} 18. g4 {[%clk 1:17:57]} 18... Be6 {[%clk 1:09:40]} 19. Nxe6
{[%clk 1:15:28]} 19... fxe6 {[%clk 1:08:48]} 20. Qe4 {[%clk 1:11:51]} 20... Rd6
{[%clk 1:01:46]} 21. h4 {[%clk 1:06:06]} 21... Rf8 {[%clk 0:57:09]} 22. h5
{[%clk 1:01:16]} 22... Rf4 {[%clk 0:57:02]} 23. Qe5 {[%clk 0:56:29]} 23... Rf6
{[%clk 0:51:14]} 24. hxg6 {[%clk 0:52:16]} 24... Rxg6 {[%clk 0:50:45]} 25. g5
{[%clk 0:51:13]} 25... a4 {[%clk 0:42:13]} 26. Bc4 {[%clk 0:46:24]} 26... a3
{[%clk 0:33:39]} 27. Bd3 {[%clk 0:38:03]} 27... Nb4 {[%clk 0:32:48]} 28. Rxh7
{[%clk 0:32:18]} 28... Nxd3+ {[%clk 0:30:46]} 29. cxd3 {[%clk 0:32:36]} 29...
Kf8 {[%clk 0:27:18]} 30. Qf4+ {[%clk 0:32:14]} 30... Ke8 {[%clk 0:26:59]} 31.
Qf7+ {[%clk 0:32:39]} 31... Kd8 {[%clk 0:27:17]} 32. Qf8+ {[%clk 0:33:04]} 32...
Kd7 {[%clk 0:27:36]} 33. Rxe7# {[%clk 0:33:28]} 1-0

[Variant "Standard"]
[Site "Europe Echecs"]

[Event "Championnat du monde jeunes U10"]
[Date "2024.11.17"]
[White "Shangin, Lev"]
[Black "Santoro, Marco Antonio"]
[WhiteElo "2056"]
[BlackElo "1765"]
[Round "3.19"]
[Result "1-0"]
[TimeControl "5400+30"]

1. d4 {[%clk 1:30:39]} 1... d6 {[%clk 1:30:50]} 2. Nf3 {[%clk 1:30:35]} 2... Nf6
{[%clk 1:31:07]} 3. c4 {[%clk 1:29:57]} 3... Nbd7 {[%clk 1:31:28]} 4. Nc3 {[%clk
1:29:41]} 4... e5 {[%clk 1:31:41]} 5. e4 {[%clk 1:28:11]} 5... h6 {[%clk
1:32:00]} 6. Be2 {[%clk 1:26:46]} 6... Be7 {[%clk 1:32:21]} 7. O-O {[%clk
1:25:57]} 7... c6 {[%clk 1:32:40]} 8. Qc2 {[%clk 1:23:58]} 8... Qc7 {[%clk
1:32:47]} 9. Rd1 {[%clk 1:22:52]} 9... g5 {[%clk 1:33:03]} 10. b3 {[%clk
1:13:44]} 10... Nf8 {[%clk 1:33:23]} 11. Ba3 {[%clk 1:09:43]} 11... Ng6 {[%clk
1:33:37]} 12. c5 dxc5 {[%clk 1:33:09]} 13. dxe5 {[%clk 1:00:50]} 13... Nxe5
{[%clk 1:33:05]} 14. Nxe5 {[%clk 1:01:14]} 14... Qxe5 {[%clk 1:33:22]} 15. Bb2
{[%clk 1:01:02]} 15... Qc7 {[%clk 1:32:30]} 16. e5 {[%clk 0:54:45]} 16... Ng4
{[%clk 1:31:29]} 17. Ne4 {[%clk 0:49:26]} 17... Rg8 {[%clk 1:28:04]} 18. Nd6+
{[%clk 0:47:28]} 18... Bxd6 {[%clk 1:27:30]} 19. exd6 {[%clk 0:47:44]} 19... Qd7
{[%clk 1:27:01]} 20. h3 {[%clk 0:48:00]} 20... Nxf2 {[%clk 1:26:48]} 21. Kxf2
{[%clk 0:48:09]} 21... Qf5+ {[%clk 1:26:25]} 22. Qxf5 {[%clk 0:48:26]} 22...
Bxf5 {[%clk 1:26:43]} 23. Bc4 {[%clk 0:46:50]} 23... O-O-O {[%clk 1:25:36]} 24.
Bf6 {[%clk 0:46:34]} 24... Rd7 {[%clk 1:25:11]} 25. g4 {[%clk 0:46:21]} 25...
Be6 {[%clk 1:25:04]} 26. Bxe6 {[%clk 0:46:37]} 26... fxe6 {[%clk 1:25:26]} 27.
Be7 {[%clk 0:47:06]} 27... b6 {[%clk 1:24:34]} 28. Ke3 {[%clk 0:46:54]} 28...
Kb7 {[%clk 1:24:41]} 29. Ke4 {[%clk 0:47:06]} 29... a5 {[%clk 1:24:48]} 30. Ke5
{[%clk 0:47:26]} 30... Rg6 {[%clk 1:25:10]} 31. Rf1 {[%clk 0:47:44]} 31... Ka6
{[%clk 1:25:24]} 32. Rf6 {[%clk 0:48:07]} 32... Rg7 {[%clk 1:25:37]} 33. Kxe6
{[%clk 0:48:32]} 33... Ra7 {[%clk 1:25:54]} 34. d7 {[%clk 0:48:53]} 34... Ra8
{[%clk 1:26:14]} 35. d8=Q {[%clk 0:49:16]} 35... Rxd8 {[%clk 1:26:36]} 36. Bxd8
{[%clk 0:49:41]} 36... Kb5 {[%clk 1:27:00]} 37. Rf7 {[%clk 0:49:45]} 37... Rg6+
{[%clk 1:27:22]} 38. Bf6 {[%clk 0:50:05]} 38... Rg8 {[%clk 1:27:40]} 39. Rh7
{[%clk 0:50:28]} 39... Kb4 {[%clk 1:27:52]} 40. Rxh6 {[%clk 0:50:47]} 40... b5
{[%clk 1:28:15]} 41. Kf5 {[%clk 0:51:04]} 41... Ka3 {[%clk 1:28:36]} 42. Bxg5
{[%clk 0:51:25]} 42... Kb2 {[%clk 1:28:51]} 43. Bf6+ {[%clk 0:51:49]} 43... Ka3
{[%clk 1:29:11]} 44. g5 {[%clk 0:52:11]} 44... b4 {[%clk 1:29:23]} 45. g6 {[%clk
0:52:23]} 45... a4 {[%clk 1:29:47]} 46. bxa4 {[%clk 0:52:41]} 46... Kxa4 {[%clk
1:30:11]} 47. g7 {[%clk 0:53:07]} 47... c4 {[%clk 1:30:33]} 48. Rh8 {[%clk
0:53:30]} 48... Rxg7 {[%clk 1:30:58]} 49. Bxg7 {[%clk 0:53:56]} 49... c5 {[%clk
1:31:20]} 50. Ra8+ {[%clk 0:54:22]} 50... Kb5 {[%clk 1:31:45]} 51. Rd1 {[%clk
0:54:42]} 51... c3 {[%clk 1:32:08]} 52. h4 {[%clk 0:55:08]} 52... Kc4 {[%clk
1:32:30]} 53. h5 {[%clk 0:55:32]} 53... b3 {[%clk 1:32:50]} 54. axb3+ {[%clk
0:55:59]} 54... Kxb3 {[%clk 1:33:16]} 55. h6 {[%clk 0:56:22]} 55... Kc2 {[%clk
1:33:39]} 56. Raa1 {[%clk 0:56:47]} 56... c4 {[%clk 1:33:58]} 57. h7 {[%clk
0:57:09]} 57... Kb2 {[%clk 1:34:18]} 58. h8=Q {[%clk 0:57:33]} 58... Kc2 {[%clk
1:34:42]} 59. Qh2+ {[%clk 0:57:57]} 59... Kb3 {[%clk 1:35:00]} 60. Rdb1# {[%clk
0:58:25]} 1-0

[Variant "Standard"]
[Site "Europe Echecs"]

[Event "Championnat du monde jeunes U10"]
[Date "2024.11.17"]
[White "Zhou, Martin"]
[Black "Ling, Chenxuan"]
[WhiteElo "1776"]
[BlackElo "1967"]
[Round "3.20"]
[Result "0-1"]
[TimeControl "5400+30"]

1. e4 {[%clk 1:30:58]} 1... c5 {[%clk 1:30:56]} 2. Nc3 {[%clk 1:31:17]} 2... Nc6
{[%clk 1:31:21]} 3. g3 {[%clk 1:31:42]} 3... g6 {[%clk 1:31:48]} 4. Bg2 {[%clk
1:32:06]} 4... Bg7 {[%clk 1:32:14]} 5. d3 {[%clk 1:32:30]} 5... d6 {[%clk
1:32:40]} 6. Be3 {[%clk 1:32:48]} 6... Rb8 {[%clk 1:33:02]} 7. Nge2 {[%clk
1:33:07]} 7... e6 {[%clk 1:32:42]} 8. O-O {[%clk 1:33:22]} 8... Nge7 {[%clk
1:33:07]} 9. Qd2 {[%clk 1:33:26]} 9... O-O {[%clk 1:32:38]} 10. f4 {[%clk
1:33:35]} 10... b5 {[%clk 1:32:24]} 11. e5 {[%clk 1:26:29]} 11... f5 {[%clk
1:24:58]} 12. Rad1 {[%clk 1:13:52]} 12... Ba6 {[%clk 1:04:29]} 13. Rfe1 {[%clk
0:59:06]} 13... Qc7 {[%clk 1:00:19]} 14. exd6 {[%clk 0:51:00]} 14... Qxd6 {[%clk
0:57:49]} 15. d4 {[%clk 0:50:54]} 15... b4 {[%clk 0:49:18]} 16. Na4 {[%clk
0:46:36]} 16... Bxe2 {[%clk 0:40:38]} 17. Rxe2 {[%clk 0:44:32]} 17... cxd4
{[%clk 0:40:01]} 18. c3 {[%clk 0:44:14]} 18... Rfd8 {[%clk 0:38:53]} 19. cxd4
{[%clk 0:43:01]} 19... Nxd4 {[%clk 0:37:19]} 20. Ree1 {[%clk 0:42:25]} 20... Qa6
{[%clk 0:33:03]} 21. Qf2 {[%clk 0:38:50]} 21... Qxa4 {[%clk 0:24:16]} 22. Bxd4
{[%clk 0:37:14]} 22... Rd6 {[%clk 0:23:43]} 23. Bxa7 {[%clk 0:33:11]} 23... Rxd1
{[%clk 0:24:02]} 24. Bxb8 {[%clk 0:33:22]} 24... Bd4 {[%clk 0:24:20]} 25. Qxd4
{[%clk 0:31:26]} 25... Rxd4 {[%clk 0:24:42]} 26. Rxe6 {[%clk 0:31:24]} 26...
Rd1+ {[%clk 0:24:52]} 27. Bf1 {[%clk 0:31:48]} 27... Qb5 {[%clk 0:25:18]} 0-1

[Variant "Standard"]
[Site "Europe Echecs"]

[Event "Championnat du monde jeunes U10"]
[Date "2024.11.17"]
[White "Fuentes de Nova, Sebastian"]
[Black "Otetileu, Amanbek"]
[WhiteElo "1929"]
[BlackElo "1632"]
[Round "3.21"]
[Result "1/2-1/2"]
[TimeControl "5400+30"]

1. d4 {[%clk 1:30:15]} 1... d5 {[%clk 1:30:27]} 2. c4 {[%clk 1:30:17]} 2... e6
{[%clk 1:28:36]} 3. Nc3 {[%clk 1:29:55]} 3... Nf6 {[%clk 1:27:42]} 4. cxd5
{[%clk 1:29:11]} 4... exd5 {[%clk 1:26:13]} 5. Bg5 {[%clk 1:28:35]} 5... Be7
{[%clk 1:22:59]} 6. e3 {[%clk 1:27:28]} 6... c6 {[%clk 1:20:39]} 7. Qc2 {[%clk
1:26:02]} 7... O-O {[%clk 1:19:40]} 8. Bd3 {[%clk 1:25:54]} 8... h6 {[%clk
1:20:04]} 9. Bh4 {[%clk 1:26:01]} 9... Re8 {[%clk 1:17:50]} 10. Nf3 {[%clk
1:22:34]} 10... Ne4 {[%clk 1:16:33]} 11. Bxe7 {[%clk 1:21:48]} 11... Qxe7 {[%clk
1:16:53]} 12. O-O {[%clk 1:16:15]} 12... Nd7 {[%clk 1:15:20]} 13. Rab1 {[%clk
1:12:14]} 13... Nf8 {[%clk 1:08:57]} 14. Ne5 {[%clk 1:07:28]} 14... f6 {[%clk
1:06:45]} 15. Nxe4 {[%clk 1:05:04]} 15... fxe5 {[%clk 1:04:44]} 16. Ng3 {[%clk
1:04:12]} 16... exd4 {[%clk 1:04:28]} 17. exd4 {[%clk 1:04:18]} 17... Qf6 {[%clk
1:03:29]} 18. Qc3 {[%clk 1:00:49]} 18... Ne6 {[%clk 1:01:30]} 19. Rbe1 {[%clk
0:56:20]} 19... Bd7 {[%clk 1:00:24]} 20. Bf5 {[%clk 0:51:25]} 20... Nf8 {[%clk
0:59:18]} 21. Qd3 {[%clk 0:43:51]} 21... Bxf5 {[%clk 0:58:52]} 22. Nxf5 {[%clk
0:42:56]} 22... Ng6 {[%clk 0:56:14]} 23. g3 {[%clk 0:37:32]} 23... Rxe1 {[%clk
0:55:17]} 24. Rxe1 {[%clk 0:35:38]} 24... Rf8 {[%clk 0:55:38]} 25. g4 {[%clk
0:33:51]} 25... Nh4 {[%clk 0:49:14]} 26. Re5 {[%clk 0:29:30]} 26... g6 {[%clk
0:48:05]} 27. Nxh4 {[%clk 0:28:38]} 27... Qxf2+ {[%clk 0:48:21]} 28. Kh1 {[%clk
0:29:00]} 28... Qxh4 {[%clk 0:48:43]} 29. Qxg6+ {[%clk 0:29:24]} 29... Kh8
{[%clk 0:49:06]} 30. Re8 {[%clk 0:27:45]} 30... Rxe8 {[%clk 0:48:56]} 31. Qxe8+
{[%clk 0:28:06]} 31... Kg7 {[%clk 0:49:01]} 32. Qd7+ {[%clk 0:28:18]} 32... Kg6
{[%clk 0:49:04]} 33. Qe6+ {[%clk 0:26:41]} 33... Kg7 {[%clk 0:49:04]} 34. Qe5+
{[%clk 0:21:23]} 34... Kg6 {[%clk 0:49:00]} 35. Qe6+ {[%clk 0:16:40]} 35... Kg7
{[%clk 0:48:01]} 36. Kg2 {[%clk 0:16:45]} 36... a5 {[%clk 0:47:56]} 37. h3
{[%clk 0:16:26]} 37... Qf6 {[%clk 0:47:27]} 38. Qxf6+ {[%clk 0:06:12]} 38...
Kxf6 {[%clk 0:47:42]} 39. h4 {[%clk 0:06:26]} 39... b6 {[%clk 0:48:06]} 40. Kf3
{[%clk 0:06:51]} 40... c5 {[%clk 0:48:25]} 41. Ke3 {[%clk 0:06:49]} 41... a4
{[%clk 0:47:23]} 42. Kd3 {[%clk 0:05:08]} 42... Ke6 {[%clk 0:45:40]} 43. Kc3
{[%clk 0:04:30]} 43... Kd6 {[%clk 0:44:56]} 44. b4 {[%clk 0:03:08]} 44... axb3
{[%clk 0:45:10]} 45. Kxb3 {[%clk 0:03:19]} 45... c4+ {[%clk 0:45:12]} 46. Kb4
{[%clk 0:02:33]} 46... Ke6 {[%clk 0:44:40]} 47. Kc3 {[%clk 0:02:47]} 1/2-1/2

[Variant "Standard"]
[Site "Europe Echecs"]

[Event "Championnat du monde jeunes U10"]
[Date "2024.11.17"]
[White "Meitzner, Jonathan Franz"]
[Black "Mikkelsen, Anders Askjaer"]
[WhiteElo "1876"]
[BlackElo "1745"]
[Round "3.22"]
[Result "0-1"]
[TimeControl "5400+30"]

1. d4 {[%clk 1:30:56]} 1... Nf6 {[%clk 1:30:24]} 2. Nd2 {[%clk 1:31:15]} 2... e6
{[%clk 1:30:42]} 3. Ngf3 {[%clk 1:31:36]} 3... c5 {[%clk 1:30:29]} 4. e3 {[%clk
1:31:15]} 4... d5 {[%clk 1:30:25]} 5. Be2 {[%clk 1:28:07]} 5... Nc6 {[%clk
1:27:36]} 6. O-O {[%clk 1:27:47]} 6... Bd6 {[%clk 1:27:49]} 7. b3 {[%clk
1:26:23]} 7... O-O {[%clk 1:25:31]} 8. Bb2 {[%clk 1:26:36]} 8... Re8 {[%clk
1:25:03]} 9. Ne5 {[%clk 1:26:14]} 9... Qc7 {[%clk 1:24:39]} 10. f4 {[%clk
1:25:59]} 10... Qb6 {[%clk 1:23:25]} 11. Ndf3 {[%clk 1:23:48]} 11... Nd7 {[%clk
1:22:25]} 12. Kh1 {[%clk 1:15:07]} 12... f6 {[%clk 1:20:08]} 13. Nd3 {[%clk
1:11:33]} 13... Ne7 {[%clk 1:10:38]} 14. Nh4 {[%clk 0:55:34]} 14... Qc7 {[%clk
0:57:28]} 15. Bg4 {[%clk 0:47:33]} 15... Nf8 {[%clk 0:55:51]} 16. Qe2 {[%clk
0:42:11]} 16... Bd7 {[%clk 0:50:09]} 17. Qf2 {[%clk 0:28:37]} 17... b5 {[%clk
0:45:41]} 18. f5 {[%clk 0:21:40]} 18... Bxh2 {[%clk 0:39:28]} 19. fxe6 {[%clk
0:12:51]} 19... Bxe6 {[%clk 0:34:12]} 20. Bxe6+ {[%clk 0:07:36]} 20... Nxe6
{[%clk 0:34:34]} 21. Nf5 {[%clk 0:07:10]} 21... c4 {[%clk 0:29:28]} 22. Nxe7+
{[%clk 0:06:51]} 22... Rxe7 {[%clk 0:29:22]} 23. Nb4 {[%clk 0:06:31]} 23... Rd8
{[%clk 0:28:56]} 24. Qf5 {[%clk 0:06:33]} 24... Qd6 {[%clk 0:24:52]} 25. Nxd5
{[%clk 0:04:35]} 25... Qxd5 {[%clk 0:25:15]} 26. Qxd5 {[%clk 0:04:06]} 26...
Rxd5 {[%clk 0:25:38]} 27. Kxh2 {[%clk 0:04:28]} 27... Ng5 {[%clk 0:25:02]} 28.
Rfe1 {[%clk 0:03:51]} 28... Ne4 {[%clk 0:24:41]} 29. Rab1 {[%clk 0:03:17]} 29...
c3 {[%clk 0:23:40]} 30. Ba3 {[%clk 0:03:16]} 30... Red7 {[%clk 0:23:34]} 31. Bb4
{[%clk 0:03:10]} 31... Rh5+ {[%clk 0:23:14]} 32. Kg1 {[%clk 0:03:24]} 32... Rdd5
{[%clk 0:21:52]} 33. Rbd1 {[%clk 0:02:22]} 33... Ng3 {[%clk 0:21:34]} 34. e4
{[%clk 0:01:29]} 34... Rdg5 {[%clk 0:16:14]} 35. d5 {[%clk 0:01:17]} 35... Rg4
{[%clk 0:15:43]} 36. d6 {[%clk 0:00:48]} 36... Rf4 {[%clk 0:15:59]} 0-1

[Variant "Standard"]
[Site "Europe Echecs"]

[Event "Championnat du monde jeunes U10"]
[Date "2024.11.17"]
[White "Nguyen Minh"]
[Black "Garcia Tanjala, Marko"]
[WhiteElo "1760"]
[BlackElo "1833"]
[Round "3.23"]
[Result "1-0"]
[TimeControl "5400+30"]

1. d4 {[%clk 1:30:57]} 1... Nf6 {[%clk 1:30:39]} 2. c4 {[%clk 1:31:20]} 2... e6
{[%clk 1:30:55]} 3. Nf3 {[%clk 1:31:44]} 3... b6 {[%clk 1:31:07]} 4. Nc3 {[%clk
1:32:05]} 4... Bb7 {[%clk 1:31:29]} 5. Bg5 {[%clk 1:31:05]} 5... Be7 {[%clk
1:31:48]} 6. e3 {[%clk 1:31:23]} 6... O-O {[%clk 1:31:55]} 7. Bd3 {[%clk
1:31:45]} 7... d5 {[%clk 1:31:58]} 8. O-O {[%clk 1:20:44]} 8... Nbd7 {[%clk
1:31:22]} 9. Qe2 {[%clk 1:15:29]} 9... h6 {[%clk 1:29:47]} 10. Bxf6 {[%clk
1:15:13]} 10... Nxf6 {[%clk 1:29:07]} 11. e4 {[%clk 1:13:21]} 11... dxe4 {[%clk
1:27:34]} 12. Nxe4 {[%clk 1:11:36]} 12... c5 {[%clk 1:26:45]} 13. dxc5 {[%clk
1:07:48]} 13... Nxe4 {[%clk 1:26:36]} 14. Bxe4 {[%clk 1:08:11]} 14... Bxe4
{[%clk 1:26:29]} 15. Qxe4 {[%clk 1:08:32]} 15... bxc5 {[%clk 1:24:36]} 16. Rfd1
{[%clk 1:03:05]} 16... Qb6 {[%clk 1:24:56]} 17. Qe2 {[%clk 0:55:26]} 17... Bf6
{[%clk 1:23:37]} 18. Ne5 {[%clk 0:52:28]} 18... Rfd8 {[%clk 1:17:50]} 19. Rab1
{[%clk 0:40:16]} 19... Qc7 {[%clk 1:16:50]} 20. Nf3 {[%clk 0:38:17]} 20... Qf4
{[%clk 1:16:38]} 21. b3 {[%clk 0:31:21]} 21... e5 {[%clk 1:13:51]} 22. Nd2
{[%clk 0:19:32]} 22... Rd4 {[%clk 1:08:59]} 23. Nf1 {[%clk 0:19:00]} 23... Bg5
{[%clk 1:05:04]} 24. Qc2 {[%clk 0:15:16]} 24... Qe4 {[%clk 0:56:23]} 25. Qxe4
{[%clk 0:13:19]} 25... Rxe4 {[%clk 0:56:47]} 26. Ng3 {[%clk 0:13:41]} 26... Rd4
{[%clk 0:57:01]} 27. Ne2 {[%clk 0:13:52]} 27... Re4 {[%clk 0:53:27]} 28. Kf1
{[%clk 0:13:25]} 28... f5 {[%clk 0:52:57]} 29. Rd5 {[%clk 0:12:28]} 29... Rc8
{[%clk 0:49:51]} 30. Rbd1 {[%clk 0:08:46]} 30... Rc6 {[%clk 0:49:06]} 31. Rd6
{[%clk 0:08:43]} 31... Rc8 {[%clk 0:48:05]} 32. Rd7 {[%clk 0:09:04]} 32... Bf6
{[%clk 0:46:57]} 33. Rxa7 {[%clk 0:09:04]} 33... Rg4 {[%clk 0:46:43]} 34. a4
{[%clk 0:08:34]} 34... Rb8 {[%clk 0:47:09]} 35. f3 {[%clk 0:08:20]} 35... Rh4
{[%clk 0:47:32]} 36. Nc1 {[%clk 0:05:46]} 36... Rxh2 {[%clk 0:47:38]} 37. Kg1
{[%clk 0:06:05]} 37... Rh4 {[%clk 0:48:00]} 38. a5 {[%clk 0:04:38]} 38... Kh7
{[%clk 0:46:10]} 39. a6 {[%clk 0:04:55]} 39... e4 {[%clk 0:45:02]} 40. g3 {[%clk
0:05:06]} 40... Rh5 {[%clk 0:45:10]} 41. fxe4 {[%clk 0:05:26]} 41... fxe4 {[%clk
0:45:35]} 42. Rb7 {[%clk 0:04:37]} 42... Ra8 {[%clk 0:45:40]} 43. a7 {[%clk
0:04:58]} 43... Bd4+ {[%clk 0:45:53]} 44. Kg2 {[%clk 0:05:18]} 44... Re5 {[%clk
0:45:51]} 45. Ne2 {[%clk 0:05:37]} 45... e3 {[%clk 0:46:01]} 46. b4 {[%clk
0:05:33]} 46... Ree8 {[%clk 0:44:13]} 47. b5 {[%clk 0:05:50]} 47... Kg8 {[%clk
0:43:26]} 48. b6 {[%clk 0:05:42]} 48... g5 {[%clk 0:43:24]} 49. g4 {[%clk
0:05:38]} 49... Kh8 {[%clk 0:43:17]} 50. Rf1 {[%clk 0:04:55]} 50... Be5 {[%clk
0:42:15]} 51. Rff7 {[%clk 0:04:59]} 51... Kg8 {[%clk 0:41:54]} 52. Rfe7 {[%clk
0:05:08]} 52... Kf8 {[%clk 0:41:47]} 53. Rxe5 {[%clk 0:05:05]} 53... Rxe5 {[%clk
0:41:55]} 54. Rb8+ {[%clk 0:05:32]} 54... Re8 {[%clk 0:42:19]} 55. Rxe8+ {[%clk
0:05:41]} 55... Kxe8 {[%clk 0:42:43]} 56. b7 {[%clk 0:06:07]} 1-0

[Variant "Standard"]
[Site "Europe Echecs"]

[Event "Championnat du monde jeunes U10"]
[Date "2024.11.17"]
[White "Aitmukhanov, Arsen"]
[Black "Zhang, Oscar Y"]
[WhiteElo "1579"]
[BlackElo "1817"]
[Round "3.24"]
[Result "1-0"]
[TimeControl "5400+30"]

1. e4 {[%clk 1:30:43]} 1... c5 {[%clk 1:30:47]} 2. Nf3 {[%clk 1:31:07]} 2... d6
{[%clk 1:31:12]} 3. Bb5+ {[%clk 1:31:31]} 3... Bd7 {[%clk 1:31:22]} 4. Bxd7+
{[%clk 1:31:55]} 4... Qxd7 {[%clk 1:31:47]} 5. O-O {[%clk 1:32:18]} 5... Nf6
{[%clk 1:32:11]} 6. Qe2 {[%clk 1:32:41]} 6... Nc6 {[%clk 1:32:14]} 7. c3 {[%clk
1:33:03]} 7... e6 {[%clk 1:32:01]} 8. d4 {[%clk 1:33:08]} 8... cxd4 {[%clk
1:32:24]} 9. cxd4 {[%clk 1:33:32]} 9... d5 {[%clk 1:32:14]} 10. e5 {[%clk
1:33:55]} 10... Ne4 {[%clk 1:31:45]} 11. Nbd2 {[%clk 1:34:14]} 11... Nxd2 {[%clk
1:30:56]} 12. Bxd2 {[%clk 1:34:12]} 12... Be7 {[%clk 1:30:14]} 13. g3 {[%clk
1:34:00]} 13... O-O {[%clk 1:29:40]} 14. h4 {[%clk 1:34:10]} 14... Rac8 {[%clk
1:26:53]} 15. Kg2 {[%clk 1:34:12]} 15... Rc7 {[%clk 1:22:58]} 16. Qd3 {[%clk
1:33:39]} 16... Rfc8 {[%clk 1:20:16]} 17. a3 {[%clk 1:32:35]} 17... f6 {[%clk
1:15:04]} 18. exf6 {[%clk 1:32:24]} 18... gxf6 {[%clk 1:14:59]} 19. Rfe1 {[%clk
1:28:35]} 19... Bd6 {[%clk 1:12:54]} 20. Qe3 {[%clk 1:27:42]} 20... Re8 {[%clk
1:12:14]} 21. b4 {[%clk 1:14:50]} 21... Qg7 {[%clk 1:06:06]} 22. b5 {[%clk
1:14:03]} 22... Nd8 {[%clk 1:06:29]} 23. Bb4 {[%clk 1:12:07]} 23... Nf7 {[%clk
1:06:36]} 24. Qb3 {[%clk 1:10:00]} 24... Qg4 {[%clk 1:02:15]} 25. Rac1 {[%clk
1:04:00]} 25... Kh8 {[%clk 1:00:52]} 26. Bxd6 {[%clk 0:58:55]} 26... Rxc1 {[%clk
1:01:12]} 27. Rxc1 {[%clk 0:59:19]} 27... Nxd6 {[%clk 1:01:34]} 28. b6 {[%clk
0:57:24]} 28... a5 {[%clk 1:00:10]} 29. Qa4 {[%clk 0:57:30]} 29... Rg8 {[%clk
0:59:56]} 30. Qd7 {[%clk 0:57:27]} 30... Nf5 {[%clk 0:54:14]} 31. Rc8 {[%clk
0:54:19]} 31... Ne3+ {[%clk 0:50:38]} 32. Kg1 {[%clk 0:54:39]} 32... Qh3 {[%clk
0:42:43]} 33. Rxg8+ {[%clk 0:54:07]} 33... Kxg8 {[%clk 0:43:06]} 34. Qd8+ {[%clk
0:54:33]} 34... Kf7 {[%clk 0:41:51]} 35. Qc7+ {[%clk 0:54:58]} 35... Kg6 {[%clk
0:42:05]} 36. fxe3 {[%clk 0:55:24]} 36... Qf5 {[%clk 0:42:28]} 37. Kg2 {[%clk
0:55:16]} 37... Qd3 {[%clk 0:42:26]} 38. h5+ {[%clk 0:55:13]} 38... Kxh5 {[%clk
0:42:27]} 39. Qf7+ {[%clk 0:55:34]} 39... Kg4 {[%clk 0:42:29]} 40. Qg8+ {[%clk
0:55:44]} 40... Kh5 {[%clk 0:42:52]} 41. Qf7+ {[%clk 0:55:32]} 41... Qg6 {[%clk
0:41:50]} 42. Qxe6 {[%clk 0:55:41]} 42... Qc2+ {[%clk 0:42:14]} 43. Kh3 {[%clk
0:56:07]} 43... Qd3 {[%clk 0:42:03]} 44. Qxd5+ {[%clk 0:55:54]} 44... Kh6 {[%clk
0:42:23]} 45. Nh2 {[%clk 0:56:12]} 45... Qxe3 {[%clk 0:42:26]} 46. Ng4+ {[%clk
0:56:36]} 1-0

[Variant "Standard"]
[Site "Europe Echecs"]

[Event "Championnat du monde jeunes U10"]
[Date "2024.11.17"]
[White "Larionov, Serghei"]
[Black "Annapureddy, Rheyansh Reddy"]
[WhiteElo "1720"]
[BlackElo "2122"]
[Round "3.25"]
[Result "1-0"]
[TimeControl "5400+30"]

1. d4 {[%clk 1:30:55]} 1... Nf6 {[%clk 1:30:54]} 2. c4 {[%clk 1:31:17]} 2... g6
{[%clk 1:31:18]} 3. Nc3 {[%clk 1:31:39]} 3... Bg7 {[%clk 1:31:45]} 4. e4 {[%clk
1:30:57]} 4... d6 {[%clk 1:32:11]} 5. Be2 {[%clk 1:30:00]} 5... O-O {[%clk
1:32:15]} 6. Be3 {[%clk 1:29:39]} 6... e5 {[%clk 1:32:25]} 7. d5 {[%clk
1:29:57]} 7... Na6 {[%clk 1:31:17]} 8. g4 {[%clk 1:29:59]} 8... Nc5 {[%clk
1:31:40]} 9. f3 {[%clk 1:28:56]} 9... a5 {[%clk 1:31:01]} 10. h4 {[%clk
1:27:44]} 10... h5 {[%clk 1:31:14]} 11. g5 {[%clk 1:27:59]} 11... Nh7 {[%clk
1:31:33]} 12. Nh3 {[%clk 1:21:32]} 12... Bxh3 {[%clk 1:31:35]} 13. Rxh3 {[%clk
1:21:48]} 13... f6 {[%clk 1:26:45]} 14. gxf6 {[%clk 1:14:56]} 14... Bxf6 {[%clk
1:26:54]} 15. Bf2 {[%clk 1:15:17]} 15... Be7 {[%clk 1:24:57]} 16. Qd2 {[%clk
1:12:39]} 16... Rf4 {[%clk 1:23:46]} 17. O-O-O {[%clk 1:07:19]} 17... Bxh4
{[%clk 1:15:55]} 18. Be3 {[%clk 1:06:24]} 18... Bg5 {[%clk 1:11:47]} 19. Kb1
{[%clk 1:02:39]} 19... Rf8 {[%clk 1:03:35]} 20. Rg1 {[%clk 1:02:48]} 20... Bxe3
{[%clk 1:01:52]} 21. Qxe3 {[%clk 1:03:11]} 21... Rf4 {[%clk 1:00:24]} 22. Rxg6+
{[%clk 1:02:34]} 22... Kf7 {[%clk 0:58:47]} 23. Qg1 {[%clk 0:57:21]} 23... Qh8
{[%clk 0:55:15]} 24. Rh6 {[%clk 0:49:15]} 24... Rg8 {[%clk 0:52:48]} 25. Qf1
{[%clk 0:45:47]} 25... Qg7 {[%clk 0:51:18]} 26. R3xh5 {[%clk 0:42:08]} 26... Nf6
{[%clk 0:51:26]} 27. Rh1 {[%clk 0:41:39]} 27... Ncxe4 {[%clk 0:48:51]} 28. Nxe4
{[%clk 0:40:45]} 28... Nxe4 {[%clk 0:46:30]} 29. Qe1 {[%clk 0:40:48]} 29... Nf6
{[%clk 0:45:05]} 30. Qxa5 {[%clk 0:40:53]} 30... Ke8 {[%clk 0:38:25]} 31. Qa8+
{[%clk 0:38:56]} 31... Kd7 {[%clk 0:38:25]} 32. Qxb7 {[%clk 0:37:58]} 32... Rd4
{[%clk 0:38:17]} 33. c5 {[%clk 0:37:12]} 33... Qg1+ 34. Rxg1 {[%clk 0:37:31]}
34... Rxg1+ {[%clk 0:29:42]} 35. Kc2 {[%clk 0:37:21]} 35... Rg2 {[%clk 0:29:53]}
36. c6+ {[%clk 0:37:40]} 36... Kd8 {[%clk 0:29:23]} 37. Qb8+ {[%clk 0:38:02]}
37... Ke7 {[%clk 0:29:49]} 38. Qxc7+ {[%clk 0:38:23]} 38... Ke8 {[%clk 0:28:52]}
39. Qc8+ {[%clk 0:37:27]} 1-0

[Variant "Standard"]
[Site "Europe Echecs"]